fUSD/lending_fUSD_20240220
["ID","MTS","AMOUNT","RATE_DAILY","PERIOD"]
[314530853,1708405874416,-500.0,0.00037112,2]
[314530854,1708405874425,-500.0,0.00037112,2]
[314530855,1708405874434,-500.0,0.00037112,2]
[314530856,1708405874443,-500.0,0.00037112,2]
[314530857,1708405874453,-500.0,0.00037112,2]
[314530858,1708405874463,-500.0,0.00037112,2]
[314530859,1708405874472,-500.0,0.00037112,2]
[314530860,1708405874482,-500.0,0.00037112,2]
[314530861,1708405874491,-653.77,0.00037112,2]
[314530862,1708405874501,-500.0,0.00037112,2]
[314530863,1708405874510,-651.49,0.00037112,2]
[314530864,1708405874520,-500.0,0.00037112,2]
[314530865,1708405874529,-500.0,0.00037112,2]
[314530866,1708405874538,-568.04,0.00037112,2]
[314530867,1708405874549,-500.0,0.00037112,2]
[314530868,1708405874559,-500.0,0.00037112,2]
[314530869,1708405874569,-500.0,0.00037112,2]
[314530870,1708405874579,-500.0,0.00037112,2]
[314530871,1708405874588,-500.0,0.00037112,2]
[314530872,1708405874597,-502.26,0.00037112,2]
[314530873,1708405874607,-500.0,0.00037112,2]
[314530874,1708405874616,-500.0,0.00037112,2]
[314530875,1708405874626,-500.0,0.00037112,2]
[314530876,1708405874636,-500.0,0.00037112,2]
[314530877,1708405874645,-500.0,0.00037112,2]
[314530878,1708405874656,-500.0,0.00037112,2]
[314530879,1708405874665,-592.29,0.00037112,2]
[314530880,1708405874674,-609.58,0.00037112,2]
[314530881,1708405874684,-500.0,0.00037112,2]
[314530882,1708405874693,-500.0,0.00037112,2]
[314530883,1708405874703,-500.0,0.00037112,2]
[314530884,1708405874712,-500.0,0.00037112,2]
[314530885,1708405874722,-500.0,0.00037112,2]
[314530886,1708405874731,-1156.3,0.00037112,2]
[314530887,1708405874740,-500.0,0.00037112,2]
[314530888,1708405874750,-500.0,0.00037112,2]
[314530889,1708405874759,-500.0,0.00037112,2]
[314530890,1708405874769,-500.0,0.00037112,2]
[314530891,1708405874778,-500.0,0.00037112,2]
[314530892,1708405874789,-1376.34,0.00037112,2]
[314530893,1708405874798,-1450.35,0.00037112,2]
[314530894,1708405874807,-710.23,0.00037112,2]
[314530895,1708405874816,-612.87,0.00037112,2]
[314530896,1708405874826,-500.0,0.00037112,2]
[314530897,1708405874836,-2122.43,0.00037112,2]
[314530898,1708405874845,-500.0,0.00037112,2]
[314530899,1708405874854,-500.0,0.00037112,2]
[314530900,1708405874864,-1666.11,0.00037112,2]
[314530901,1708405874873,-996.96,0.00037112,2]
[314530902,1708405874883,-500.0,0.00037112,2]
[314530903,1708405874893,-500.0,0.00037112,2]
[314530904,1708405874902,-2200.91,0.00037112,2]
[314530905,1708405874913,-500.0,0.00037112,2]
[314530906,1708405874923,-3505.57,0.00037112,2]
[314530907,1708405874933,-1549.1,0.00037112,2]
[314530908,1708405874943,-500.0,0.00037112,2]
[314530909,1708405874952,-500.0,0.00037112,2]
[314530910,1708405874962,-1427.74,0.00037112,2]
[314530911,1708405874973,-1106.24,0.00037112,2]
[314530912,1708405874984,-500.0,0.00037112,2]
[314530913,1708405874994,-558.37,0.00037112,2]
[314530914,1708405875003,-500.0,0.00037112,2]
[314530915,1708405875014,-8266.61,0.00037112,2]
[314530916,1708405875024,-500.0,0.00037112,2]
[314530917,1708405875036,-500.0,0.00037112,2]
[314530918,1708405875046,-500.0,0.00037112,2]
[314530919,1708405875057,-373.24832292,0.00037112,2]
[314530920,1708405875068,-500.0,0.00037112,2]
[314530921,1708405875078,-500.0,0.00037112,2]
[314530922,1708405875088,-1222.07,0.00037112,2]
[314530923,1708405875098,-500.0,0.00037112,2]
[314530924,1708405875107,-500.0,0.00037112,2]
[314530925,1708405875117,-1383.97,0.00037112,2]
[314530926,1708405875127,-1188.64,0.00037112,2]
[314530927,1708405875136,-500.0,0.00037112,2]
[314530928,1708405875146,-1841.65,0.00037112,2]
[314530929,1708405875156,-514.51,0.00037112,2]
[314530930,1708405875166,-500.0,0.00037112,2]
[314530931,1708405875175,-500.0,0.00037112,2]
[314530932,1708405875185,-500.0,0.00037112,2]
[314530933,1708405875194,-500.0,0.00037112,2]
[314530934,1708405875204,-500.0,0.00037112,2]
[314530935,1708405875214,-500.0,0.00037112,2]
[314530936,1708405875223,-2051.17,0.00037112,2]
[314530937,1708405875233,-500.0,0.00037112,2]
[314530938,1708405875243,-500.0,0.00037112,2]
[314530939,1708405875252,-1668.23,0.00037112,2]
[314530940,1708405875261,-500.0,0.00037112,2]
[314530941,1708405875271,-500.0,0.00037112,2]
[314530942,1708405875280,-1172.7,0.00037112,2]
[314530943,1708405875289,-500.0,0.00037112,2]
[314530944,1708405875299,-1083.34,0.00037112,2]
[314530945,1708405875309,-150.0,0.00037117,2]
[314530946,1708405875318,-150.0,0.0003712,2]
[314530947,1708405875328,-300.0,0.00037122,2]
[314530948,1708405875338,-150.0,0.00037123,2]
[314530949,1708405875348,-150.0,0.00037125,2]
[314530950,1708405875358,-150.0,0.00037134,2]
[314530951,1708405875368,-150.0,0.00037135,2]
[314530952,1708405875378,-300.0,0.00037139,2]
[314530953,1708405875387,-500.0,0.00037147,2]
[314530954,1708405875397,-500.0,0.00037147,2]
[314530955,1708405875407,-500.0,0.00037147,2]
[314530956,1708405875416,-156.0,0.00037148,7]
[314530957,1708405875426,-1500.0,0.00037154,2]
[314530958,1708405875436,-150.0,0.00037182,2]
[314530959,1708405875446,-150.0,0.00037187,2]
[314530960,1708405875455,-239.48423977,0.00037187,2]
[314530961,1708405875464,-150.0,0.0003719,2]
[314530962,1708405875474,-150.0,0.0003719,2]
[314530963,1708405875483,-157.0212031,0.00037198,8]
[314530964,1708405875493,-1291.34,0.000372,7]
[314530965,1708405875502,-1500.0,0.000372,2]
[314530966,1708405875512,-446.81395791,0.00037205,4]
[314530967,1708405875521,-1020.38,0.00037212,2]
[314530968,1708405875531,-1222.32,0.00037212,2]
[314530969,1708405875541,-500.0,0.00037212,2]
[314530970,1708405875550,-1934.95,0.00037212,2]
[314530971,1708405875559,-795.84,0.00037212,2]
[314530972,1708405875568,-1767.15,0.00037212,2]
[314530973,1708405875578,-1015.81,0.00037212,2]
[314530974,1708405875587,-734.77,0.00037212,2]
[314530975,1708405875597,-1939.44,0.00037212,2]
[314530976,1708405875606,-1351.97,0.00037212,2]
[314530977,1708405875616,-1088.16,0.00037212,2]
[314530978,1708405875626,-1475.67,0.00037212,2]
[314530979,1708405875636,-1038.28,0.00037212,2]
[314530980,1708405875646,-1154.43,0.00037212,2]
[314530981,1708405875657,-1030.29,0.00037212,2]
[314530982,1708405875666,-2781.04,0.00037212,2]
[314530983,1708405875676,-524.0,0.00037212,2]
[314530984,1708405875685,-677.33,0.00037212,2]
[314530985,1708405875844,-4170.19,0.00037212,2]
[314530986,1708405875854,-500.0,0.00037212,2]
[314530987,1708405875864,-1974.77,0.00037212,2]
[314530988,1708405875873,-3026.21,0.00037212,2]
[314530989,1708405875883,-686.23,0.00037212,2]
[314530990,1708405875892,-764.58,0.00037212,2]
[314530991,1708405875901,-765.68,0.00037212,2]
[314530992,1708405875911,-1513.9,0.00037212,2]
[314530993,1708405875921,-1299.32,0.00037212,2]
[314530994,1708405875930,-940.65,0.00037212,2]
[314530995,1708405875939,-1988.81,0.00037212,2]
[314530996,1708405875949,-921.1,0.00037213,2]
[314530997,1708405875959,-1730.62,0.00037213,2]
[314530998,1708405875971,-1958.76,0.00037213,2]
[314530999,1708405875980,-1249.32,0.00037213,2]
[314531000,1708405875990,-902.22,0.00037213,2]
[314531001,1708405876000,-664.99,0.00037213,2]
[314531002,1708405876011,-669.7,0.00037213,2]
[314531003,1708405876020,-3868.49,0.00037213,2]
[314531004,1708405876030,-1885.97,0.00037213,2]
[314531005,1708405876041,-658.2,0.00037213,2]
[314531006,1708405876051,-1639.72,0.00037213,2]
[314531007,1708405876061,-1006.78,0.00037213,2]
[314531008,1708405876071,-673.99,0.00037213,2]
[314531009,1708405876081,-500.0,0.00037213,2]
[314531010,1708405876091,-505.6,0.00037213,2]
[314531011,1708405876100,-1619.9,0.00037213,2]
[314531012,1708405876110,-927.69,0.00037213,2]
[314531013,1708405876120,-2967.23,0.00037213,2]
[314531014,1708405876130,-1060.89,0.00037213,2]
[314531015,1708405876140,-1666.19,0.00037213,2]
[314531016,1708405876150,-720.79,0.00037213,2]
[314531017,1708405876160,-1070.65,0.00037213,2]
[314531018,1708405876170,-500.84,0.00037213,2]
[314531019,1708405876179,-999.67,0.00037213,2]
[314531020,1708405876188,-850.24,0.00037213,2]
[314531021,1708405876197,-1626.55,0.00037213,2]
[314531022,1708405876205,-873.93,0.00037213,2]
[314531023,1708405876215,-500.0,0.00037213,2]
[314531024,1708405876224,-1425.91,0.00037213,2]
[314531025,1708405876234,-150.0,0.00037215,2]
[314531026,1708405876243,-2231.06355972,0.00037223,2]
[314531027,1708405876252,-153.91957767,0.00037224,2]
[314531028,1708405876262,-155.58015699,0.00037225,4]
[314531029,1708405876271,-1500.0,0.00037233,2]
[314531030,1708405876280,-3964.56826218,0.00037239,10]
[314531031,1708405876290,-150.0,0.00037249,2]
[314531032,1708405876300,-1543.08324433,0.00037259,2]
[314531033,1708405876309,-208.0,0.00037263,6]
[314531034,1708405876319,-150.0,0.00037274,2]
[314531035,1708405876329,-150.0,0.00037282,2]
[314531036,1708405876338,-156.0,0.00037285,7]
[314531037,1708405876347,-232.81847671,0.00037309,2]
[314531038,1708405876357,-150.0,0.00037316,2]
[314531039,1708405876367,-510.83,0.00037321,2]
[314531040,1708405876377,-500.0,0.00037321,2]
[314531041,1708405876386,-500.0,0.00037321,2]
[314531042,1708405876396,-791.81,0.00037321,2]
[314531043,1708405876405,-500.0,0.00037321,2]
[314531044,1708405876415,-500.0,0.00037321,2]
[314531045,1708405876424,-500.0,0.00037321,2]
[314531046,1708405876433,-500.0,0.00037321,2]
[314531047,1708405876443,-500.0,0.00037321,2]
[314531048,1708405876453,-500.0,0.00037321,2]
[314531049,1708405876463,-513.26,0.00037321,2]
[314531050,1708405876473,-500.0,0.00037321,2]
[314531051,1708405876482,-500.0,0.00037321,2]
[314531052,1708405876493,-500.0,0.00037321,2]
[314531053,1708405876502,-500.0,0.00037321,2]
[314531054,1708405876511,-500.0,0.00037321,2]
[314531055,1708405876521,-500.0,0.00037321,2]
[314531056,1708405876531,-500.0,0.00037321,2]
[314531057,1708405876541,-200.2086266,0.00037321,2]
[314531058,1708405876551,-589.5293012,0.00037321,2]
[314531059,1708405876561,-500.0,0.00037321,2]
[314531060,1708405876571,-500.0,0.00037321,2]
[314531061,1708405876580,-644.76,0.00037321,2]
[314531062,1708405876591,-500.0,0.00037321,2]
[314531063,1708405876600,-500.0,0.00037321,2]
[314531064,1708405876610,-500.0,0.00037321,2]
[314531065,1708405876619,-500.0,0.00037321,2]
[314531066,1708405876629,-500.0,0.00037321,2]
[314531067,1708405876639,-500.0,0.00037321,2]
[314531068,1708405876649,-500.0,0.00037321,2]
[314531069,1708405876659,-565.81,0.00037321,2]
[314531070,1708405876668,-500.0,0.00037321,2]
[314531071,1708405876679,-500.0,0.00037321,2]
[314531072,1708405876688,-500.0,0.00037321,2]
[314531073,1708405876698,-500.0,0.00037321,2]
[314531074,1708405876707,-500.0,0.00037321,2]
[314531075,1708405876717,-500.0,0.00037321,2]
[314531076,1708405876726,-500.0,0.00037321,2]
[314531077,1708405876736,-500.0,0.00037321,2]
[314531078,1708405876746,-500.0,0.00037321,2]
[314531079,1708405876755,-500.0,0.00037321,2]
[314531080,1708405876765,-500.0,0.00037321,2]
[314531081,1708405876774,-500.0,0.00037321,2]
[314531082,1708405876784,-551.79,0.00037321,2]
[314531083,1708405876793,-581.45,0.00037321,2]
[314531084,1708405876802,-500.0,0.00037321,2]
[314531085,1708405876812,-500.0,0.00037321,2]
[314531086,1708405876821,-523.73,0.00037321,2]
[314531087,1708405876831,-500.0,0.00037321,2]
[314531088,1708405876841,-515.57,0.00037321,2]
[314531089,1708405876850,-720.38,0.00037321,2]
[314531090,1708405876860,-500.0,0.00037321,2]
[314531091,1708405876869,-500.0,0.00037321,2]
[314531092,1708405876877,-500.0,0.00037321,2]
[314531093,1708405876887,-500.0,0.00037321,2]
[314531094,1708405876897,-500.0,0.00037321,2]
[314531095,1708405876908,-500.0,0.00037321,2]
[314531096,1708405876917,-500.0,0.00037321,2]
[314531097,1708405876927,-500.0,0.00037321,2]
[314531098,1708405876936,-500.0,0.00037321,2]
[314531099,1708405876950,-547.53,0.00037321,2]
[314531100,1708405876960,-500.0,0.00037321,2]
[314531101,1708405876971,-500.0,0.00037321,2]
[314531102,1708405876988,-500.0,0.00037321,2]
[314531103,1708405876998,-500.0,0.00037321,2]
[314531104,1708405877008,-500.0,0.00037321,2]
[314531105,1708405877019,-275.41821445,0.00037321,2]
[314531106,1708405877028,-500.0,0.00037321,2]
[314531107,1708405877038,-500.0,0.00037321,2]
[314531108,1708405877048,-500.0,0.00037321,2]
[314531109,1708405877060,-500.0,0.00037321,2]
[314531110,1708405877070,-500.0,0.00037321,2]
[314531111,1708405877080,-500.0,0.00037321,2]
[314531112,1708405877090,-538.99,0.00037321,2]
[314531113,1708405877100,-500.0,0.00037321,2]
[314531114,1708405877109,-500.0,0.00037321,2]
[314531115,1708405877118,-500.0,0.00037321,2]
[314531116,1708405877128,-500.0,0.00037321,2]
[314531117,1708405877138,-815.58,0.00037321,2]
[314531118,1708405877148,-500.0,0.00037321,2]
[314531119,1708405877158,-500.0,0.00037321,2]
[314531120,1708405877168,-500.0,0.00037321,2]
[314531121,1708405877178,-500.0,0.00037321,2]
[314531122,1708405877187,-500.0,0.00037321,2]
[314531123,1708405877197,-500.0,0.00037321,2]
[314531124,1708405877206,-606.1,0.00037321,2]
[314531125,1708405877216,-500.0,0.00037321,2]
[314531126,1708405877225,-825.71,0.00037321,2]
[314531127,1708405877237,-500.0,0.00037321,2]
[314531128,1708405877246,-500.0,0.00037321,2]
[314531129,1708405877256,-500.0,0.00037321,2]
[314531130,1708405877265,-500.0,0.00037322,2]
[314531131,1708405877275,-500.0,0.00037322,2]
[314531132,1708405877285,-500.0,0.00037322,2]
[314531133,1708405877294,-500.0,0.00037322,2]
[314531134,1708405877303,-500.0,0.00037322,2]
[314531135,1708405877312,-500.0,0.00037322,2]
[314531136,1708405877322,-500.0,0.00037322,2]
[314531137,1708405877331,-500.0,0.00037322,2]
[314531138,1708405877341,-500.0,0.00037322,2]
[314531139,1708405877350,-500.0,0.00037322,2]
[314531140,1708405877359,-500.0,0.00037322,2]
[314531141,1708405877369,-500.0,0.00037322,2]
[314531142,1708405877378,-500.0,0.00037322,2]
[314531143,1708405877388,-500.0,0.00037322,2]
[314531144,1708405877397,-500.0,0.00037322,2]
[314531145,1708405877408,-500.0,0.00037322,2]
[314531146,1708405877417,-500.0,0.00037322,2]
[314531147,1708405877427,-500.0,0.00037322,2]
[314531148,1708405877436,-500.0,0.00037322,2]
[314531149,1708405877446,-500.0,0.00037322,2]
[314531150,1708405877455,-500.0,0.00037322,2]
[314531151,1708405877466,-500.0,0.00037322,2]
[314531152,1708405877475,-500.0,0.00037322,2]
[314531153,1708405877484,-500.0,0.00037322,2]
[314531154,1708405877495,-500.0,0.00037322,2]
[314531155,1708405877504,-500.0,0.00037322,2]
[314531156,1708405877514,-500.0,0.00037322,2]
[314531157,1708405877524,-500.0,0.00037322,2]
[314531158,1708405877533,-500.0,0.00037322,2]
[314531159,1708405877543,-500.0,0.00037322,2]
[314531160,1708405877553,-500.0,0.00037322,2]
[314531161,1708405877562,-500.0,0.00037322,2]
[314531162,1708405877572,-500.0,0.00037322,2]
[314531163,1708405877582,-500.0,0.00037322,2]
[314531164,1708405877592,-500.0,0.00037322,2]
[314531165,1708405877602,-500.0,0.00037322,2]
[314531166,1708405877611,-500.0,0.00037322,2]
[314531167,1708405877621,-500.0,0.00037322,2]
[314531168,1708405877630,-500.0,0.00037322,2]
[314531169,1708405877640,-500.0,0.00037322,2]
[314531170,1708405877650,-500.0,0.00037322,2]
[314531171,1708405877659,-500.0,0.00037322,2]
[314531172,1708405877670,-500.0,0.00037322,2]
[314531173,1708405877680,-500.0,0.00037322,2]
[314531174,1708405877690,-500.0,0.00037322,2]
[314531175,1708405877699,-500.0,0.00037322,2]
[314531176,1708405877710,-500.0,0.00037322,2]
[314531177,1708405877719,-500.0,0.00037322,2]
[314531178,1708405877729,-500.0,0.00037322,2]
[314531179,1708405877738,-500.0,0.00037322,2]
[314531180,1708405877748,-554.1469964,0.00037322,2]
[314531181,1708405877758,-810.33,0.00037322,2]
[314531182,1708405877767,-500.0,0.00037322,2]
[314531183,1708405877777,-500.0,0.00037322,2]
[314531184,1708405877786,-500.0,0.00037322,2]
[314531185,1708405877796,-884.12,0.00037322,2]
[314531186,1708405877805,-500.0,0.00037322,2]
[314531187,1708405877815,-743.52,0.00037322,2]
[314531188,1708405877825,-906.89,0.00037322,2]
[314531189,1708405877834,-500.0,0.00037322,2]
[314531190,1708405877843,-500.0,0.00037322,2]
[314531191,1708405877853,-587.64,0.00037322,2]
[314531192,1708405877862,-500.0,0.00037322,2]
[314531193,1708405877872,-500.0,0.00037322,2]
[314531194,1708405877882,-613.82520127,0.00037322,2]
[314531195,1708405877892,-500.0,0.00037322,2]
[314531196,1708405877901,-500.0,0.00037322,2]
[314531197,1708405877911,-500.0,0.00037322,2]
[314531198,1708405878057,-500.0,0.00037322,2]
[314531199,1708405878079,-500.0,0.00037322,2]
[314531200,1708405878090,-500.0,0.00037322,2]
[314531201,1708405878099,-500.0,0.00037322,2]
[314531202,1708405878109,-648.5,0.00037322,2]
[314531203,1708405878118,-500.0,0.00037322,2]
[314531204,1708405878127,-500.0,0.00037322,2]
[314531205,1708405878137,-590.95,0.00037322,2]
[314531206,1708405878147,-152.82891887,0.00037323,2]
[314531207,1708405878156,-500.0,0.00037323,2]
[314531208,1708405878166,-500.0,0.00037323,2]
[314531209,1708405878175,-500.0,0.00037323,2]
[314531210,1708405878185,-575.39,0.00037323,2]
[314531211,1708405878195,-626.27,0.00037323,2]
[314531212,1708405878205,-500.0,0.00037323,2]
[314531213,1708405878215,-994.41,0.00037323,2]
[314531214,1708405878224,-500.0,0.00037323,2]
[314531215,1708405878234,-1239.4,0.00037323,2]
[314531216,1708405878244,-500.0,0.00037323,2]
[314531217,1708405878254,-500.0,0.00037323,2]
[314531218,1708405878263,-500.0,0.00037323,2]
[314531219,1708405878272,-500.0,0.00037323,2]
[314531220,1708405878281,-655.95,0.00037323,2]
[314531221,1708405878290,-587.57,0.00037323,2]
[314531222,1708405878300,-643.06,0.00037323,2]
[314531223,1708405878309,-894.33,0.00037323,2]
[314531224,1708405878318,-500.0,0.00037323,2]
[314531225,1708405878329,-500.0,0.00037323,2]
[314531226,1708405878338,-500.0,0.00037323,2]
[314531227,1708405878348,-500.0,0.00037323,2]
[314531228,1708405878357,-593.69,0.00037323,2]
[314531229,1708405878366,-688.4,0.00037323,2]
[314531230,1708405878376,-500.0,0.00037323,2]
[314531231,1708405878385,-500.0,0.00037323,2]
[314531232,1708405878395,-500.0,0.00037323,2]
[314531233,1708405878404,-500.0,0.00037323,2]
[314531234,1708405878414,-500.0,0.00037323,2]
[314531235,1708405878424,-500.0,0.00037323,2]
[314531236,1708405878433,-605.41,0.00037323,2]
[314531237,1708405878442,-547.12,0.00037323,2]
[314531238,1708405878451,-500.0,0.00037323,2]
[314531239,1708405878460,-579.04,0.00037323,2]
[314531240,1708405878470,-500.0,0.00037323,2]
[314531241,1708405878479,-500.0,0.00037323,2]
[314531242,1708405878489,-150.0,0.00037324,2]
[314531243,1708405878498,-150.0,0.00037331,2]
[314531244,1708405878508,-153.34,0.00037336,2]
[314531245,1708405878517,-150.0,0.00037339,2]
[314531246,1708405878527,-300.0,0.00037341,2]
[314531247,1708405878537,-5481.26787388,0.00037344,2]
[314531248,1708405878546,-768.9669357,0.00037347,2]
[314531249,1708405878556,-2000.0,0.0003735,2]
[314531250,1708405878566,-200.0,0.0003735,2]
[314531251,1708405878576,-2000.0,0.0003735,2]
[314531252,1708405878586,-200.0,0.0003735,2]
[314531253,1708405878595,-2000.0,0.0003735,2]
[314531254,1708405878604,-200.0,0.0003735,2]
[314531255,1708405878614,-200.0,0.0003735,2]
[314531256,1708405878623,-17764.60806144,0.00037375,2]
[314531257,1708405878633,-150.0,0.00037376,2]
[314531258,1708405878642,-300.0,0.00037376,2]
[314531259,1708405878652,-150.0,0.00037377,2]
[314531260,1708405878662,-155.21159555,0.00037379,4]
[314531261,1708405878671,-6550.1634762,0.00037381,4]
[314531262,1708405878681,-737.50520917,0.00037381,2]
[314531263,1708405878690,-2343.98,0.00037385,2]
[314531264,1708405878700,-1165.67,0.00037385,2]
[314531265,1708405878708,-543.99,0.00037385,2]
[314531266,1708405878718,-649.17,0.00037385,2]
[314531267,1708405878728,-882.84,0.00037385,2]
[314531268,1708405878737,-911.74,0.00037385,2]
[314531269,1708405878747,-2167.09,0.00037385,2]
[314531270,1708405878756,-4210.64,0.00037385,2]
[314531271,1708405878766,-19216.17,0.00037385,2]
[314531272,1708405878775,-948.0,0.00037385,2]
[314531273,1708405878784,-500.0,0.00037385,2]
[314531274,1708405878793,-1093.22,0.00037385,2]
[314531275,1708405878802,-1692.44,0.00037385,2]
[314531276,1708405878811,-500.0,0.00037385,2]
[314531277,1708405878820,-1578.14,0.00037385,2]
[314531278,1708405878830,-1099.35,0.00037385,2]
[314531279,1708405878839,-975.65,0.00037385,2]
[314531280,1708405878849,-708.65,0.00037385,2]
[314531281,1708405878858,-6268.26,0.00037385,2]
[314531282,1708405878867,-500.0,0.00037385,2]
[314531283,1708405878877,-500.0,0.00037385,2]
[314531284,1708405878886,-901.49,0.00037385,2]
[314531285,1708405878895,-651.6,0.00037385,2]
[314531286,1708405878905,-1025.4,0.00037385,2]
[314531287,1708405878915,-500.0,0.00037385,2]
[314531288,1708405878924,-3156.54,0.00037385,2]
[314531289,1708405878934,-857.52,0.00037385,2]
[314531290,1708405878943,-1107.07,0.00037385,2]
[314531291,1708405878953,-799.36,0.00037385,2]
[314531292,1708405878963,-833.39,0.00037385,2]
[314531293,1708405878975,-757.3,0.00037385,2]
[314531294,1708405878984,-3560.7,0.00037385,2]
[314531295,1708405878994,-1705.39,0.00037385,2]
[314531296,1708405879004,-789.45,0.00037385,2]
[314531297,1708405879020,-3144.99,0.00037385,2]
[314531298,1708405879042,-5007.03,0.00037385,2]
[314531299,1708405879061,-1314.19,0.00037385,2]
[314531300,1708405879080,-985.9,0.00037385,2]
[314531301,1708405879097,-1051.08,0.00037385,2]
[314531302,1708405879114,-1499.97,0.00037385,2]
[314531303,1708405879132,-7345.36,0.00037385,2]
[314531304,1708405879148,-1204.36,0.00037385,2]
[314531305,1708405879167,-500.0,0.00037385,2]
[314531306,1708405879185,-770.93,0.00037385,2]
[314531307,1708405879207,-2816.2,0.00037385,2]
[314531308,1708405879227,-856.91,0.00037385,2]
[314531309,1708405879243,-566.48,0.00037385,2]
[314531310,1708405879257,-631.33,0.00037385,2]
[314531311,1708405879275,-529.69,0.00037385,2]
[314531312,1708405879293,-934.23,0.00037385,2]
[314531313,1708405879312,-506.06,0.00037385,2]
[314531314,1708405879329,-503.72,0.00037385,2]
[314531315,1708405879347,-763.13,0.00037385,2]
[314531316,1708405879365,-500.0,0.00037385,2]
[314531317,1708405879381,-500.0,0.00037385,2]
[314531318,1708405879398,-802.39,0.00037385,2]
[314531319,1708405879414,-1007.84,0.00037385,2]
[314531320,1708405879431,-800.83,0.00037385,2]
[314531321,1708405879447,-712.66,0.00037385,2]
[314531322,1708405879462,-751.66736659,0.00037386,3]
[314531323,1708405879478,-500.0,0.00037386,2]
[314531324,1708405879494,-500.0,0.00037386,2]
[314531325,1708405879509,-500.0,0.00037386,2]
[314531326,1708405879524,-500.0,0.00037386,2]
[314531327,1708405879539,-1224.75,0.00037386,2]
[314531328,1708405879554,-500.0,0.00037386,2]
[314531329,1708405879570,-546.6,0.00037386,2]
[314531330,1708405879586,-500.0,0.00037386,2]
[314531331,1708405879602,-500.0,0.00037386,2]
[314531332,1708405879618,-500.0,0.00037386,2]
[314531333,1708405879634,-500.0,0.00037386,2]
[314531334,1708405879651,-500.0,0.00037386,2]
[314531335,1708405879669,-500.0,0.00037386,2]
[314531336,1708405879685,-500.0,0.00037386,2]
[314531337,1708405879700,-500.0,0.00037386,2]
[314531338,1708405879715,-500.0,0.00037386,2]
[314531339,1708405879730,-500.0,0.00037386,2]
[314531340,1708405879745,-1502.26,0.00037386,2]
[314531341,1708405879761,-500.0,0.00037386,2]
[314531342,1708405879776,-500.0,0.00037386,2]
[314531343,1708405879791,-855.67,0.00037386,2]
[314531344,1708405879806,-500.0,0.00037386,2]
[314531345,1708405879821,-500.0,0.00037386,2]
[314531346,1708405879835,-500.0,0.00037386,2]
[314531347,1708405879849,-500.0,0.00037386,2]
[314531348,1708405879864,-500.0,0.00037386,2]
[314531349,1708405879879,-500.0,0.00037386,2]
[314531350,1708405879893,-500.0,0.00037386,2]
[314531351,1708405879907,-500.0,0.00037386,2]
[314531352,1708405879923,-500.0,0.00037386,2]